bitfinex-derivatives/quotes_SOLF0:USTF0_20240923
["timestamp","ask_amount","ask_price","bid_price","bid_amount"]
[1727059672632,7.34,146.49,146.44,58.03828519]
[1727059672928,3.4136,146.47,146.43,10.7542]
[1727059673531,3.4136,146.47,146.44,3.4141]
[1727059674125,3.4137,146.46,146.43,10.7543]
[1727059675628,7.34,146.48,146.43,7.34]
[1727059675629,3.414,146.45,146.43,7.34]
[1727059675940,3.414,146.45,146.4,1.4146]
[1727059675941,7.34,146.48,146.41,7.34]
[1727059676127,7.34,146.48,146.42,7.34]
[1727059676641,1.3883,146.49,146.44,7.34]
[1727059677233,3.4135,146.47,146.44,10.7539]
[1727059677428,1.3883,146.49,146.44,7.34]
[1727059677834,3.4134,146.48,146.45,3.4139]
[1727059678429,3.4134,146.48,146.44,10.754]
[1727059678623,3.4134,146.48,146.44,7.34]
[1727059679031,3.4134,146.48,146.45,3.4137]
[1727059679539,3.4134,146.48,146.44,10.754]
[1727059679729,8.7283,146.49,146.44,7.34]
[1727059679938,7.34,146.48,146.42,7.34]
[1727059680130,7.34,146.48,146.43,3.4142]
[1727059680436,3.4136,146.47,146.43,3.4142]
[1727059682733,3.4134,146.48,146.45,7.34]
[1727059683235,3.4135,146.47,146.44,10.754]
[1727059683637,3.4137,146.46,146.44,7.34]
[1727059684037,3.4137,146.46,146.43,10.7543]
[1727059684633,3.4141,146.45,146.42,3.4144]
[1727059684838,7.34,146.45,146.4,7.34]
[1727059685029,7.34,146.44,146.4,7.34]
[1727059685338,3.4146,146.43,146.4,3.415]
[1727059685532,3.4146,146.43,146.38,7.34]
[1727059686033,3.4146,146.43,146.4,3.4149]
[1727059688443,3.4146,146.43,146.39,10.7552]
[1727059688444,3.4146,146.42,146.39,10.7552]
[1727059688642,3.38332763,146.43,146.39,7.34]
[1727059688844,7.34,146.44,146.38,7.34]
[1727059689040,7.34,146.44,146.21,20.49]
[1727059689041,7.34,146.39,146.34,3.13753461]
[1727059689247,7.34,146.36,146.3,7.34]
[1727059689547,7.34,146.33,146.27,7.34]
[1727059690043,3.417,146.32,146.28,3.4177]
[1727059691142,7.34,146.31,146.24,1.4102]
[1727059691448,7.34,146.31,146.25,7.34]
[1727059691744,3.4175,146.3,146.26,3.4182]
[1727059691943,7.34,146.31,146.25,7.34]
[1727059692239,10.7572,146.31,146.28,3.4178]
[1727059692446,3.4172,146.31,146.28,3.4178]
[1727059692642,3.40348479,146.34,146.26,11.48]
[1727059692844,1.4415,146.36,146.28,11.48]
[1727059693039,4.94101323,146.36,146.28,11.48]
[1727059695638,3.4166,146.34,146.3,3.4173]
[1727059696542,3.4167,146.33,146.3,3.4173]
[1727059696749,4.94101323,146.36,146.3,3.4173]
[1727059697136,3.4166,146.34,146.31,3.4171]
[1727059697849,3.4166,146.34,146.3,3.4173]
[1727059698647,4.94101323,146.36,146.28,11.48]
[1727059698950,1.4415,146.36,146.28,11.48]
[1727059699250,3.4167,146.34,146.3,3.4174]
[1727059699446,1.4415,146.36,146.28,11.48]
[1727059699647,11.48,146.35,146.26,11.48]
[1727059699846,3.4169,146.33,146.29,3.4176]
[1727059700149,11.48,146.35,146.29,3.4176]
[1727059700351,11.48,146.35,146.26,11.48]
[1727059700551,3.4171,146.32,146.28,3.4179]
[1727059701651,3.4172,146.31,146.28,3.4179]
[1727059703242,3.417,146.32,146.28,3.4179]
[1727059705154,3.417,146.32,146.29,3.4176]
[1727059705949,3.417,146.32,146.28,3.4178]
[1727059706654,3.4172,146.31,146.28,3.4178]
[1727059707952,3.4175,146.3,146.27,3.4181]
[1727059709461,3.4177,146.29,146.26,3.4182]
[1727059709759,3.47831442,146.31,146.26,3.4182]
[1727059709953,3.4178,146.29,146.26,3.4182]
[1727059711052,3.44378087,146.3,146.24,11.48]
[1727059711249,12.8108,146.32,146.24,11.48]
[1727059711763,3.4178,146.29,146.26,3.4182]
[1727059711958,16.21457513,146.32,146.21,1.4363]
[1727059712265,16.21457513,146.32,146.22,11.48]
[1727059712954,3.4178,146.29,146.22,11.48]
[1727059713158,16.21457513,146.32,146.22,11.48]
[1727059713355,16.21457513,146.32,146.24,11.48]
[1727059713862,3.4176,146.3,146.27,3.4181]
[1727059714159,16.21457513,146.32,146.24,11.48]
[1727059714355,4.73457513,146.32,146.28,7.36]
[1727059714557,4.73457513,146.32,146.29,7.36]
[1727059714558,1.3308,146.32,146.29,7.36]
[1727059714866,3.4172,146.31,146.28,10.7778]
[1727059715363,3.4176,146.3,146.27,3.418]
[1727059715560,3.4176,146.3,146.26,7.36]
[1727059715764,8.6908,146.32,146.28,7.36]
[1727059715956,4.7478,146.32,146.29,3.4176]
[1727059716263,3.417,146.32,146.29,3.4176]
[1727059716455,14.11091723,146.33,146.29,10.7776]
[1727059716659,10.69401723,146.33,146.29,10.7776]
[1727059717257,10.69401723,146.33,146.29,3.4176]
[1727059717458,3.4171,146.32,146.29,3.4176]
[1727059717667,10.7771,146.32,146.28,10.7778]
[1727059718358,3.4172,146.31,146.26,7.36]
[1727059718566,7.36,146.31,146.27,3.4181]
[1727059719068,3.4176,146.3,146.27,3.4181]
[1727059721262,3.4176,146.3,146.28,3.4179]
[1727059722366,7.36,146.31,146.25,7.36]
[1727059722568,3.33401723,146.33,146.25,7.36]
[1727059722760,7.36,146.3,146.25,7.36]
[1727059723370,3.4179,146.28,146.25,3.4184]
[1727059723574,3.48959766,146.3,146.24,7.36]
[1727059723871,7.36,146.3,146.24,7.36]
[1727059724068,3.44378087,146.29,146.24,7.36]
[1727059724367,6.86158087,146.29,146.26,3.4182]
[1727059724572,94.59569949,146.35,146.18,2.6693]
[1727059724770,7.36,146.27,146.22,7.36]
[1727059724970,7.36,146.28,146.24,7.36]
[1727059725471,10.778,146.28,146.25,3.4185]
[1727059728170,7.36,146.27,146.22,7.36]
[1727059728365,10.76026193,146.27,146.22,7.36]
[1727059729174,3.4188,146.25,146.2,3.4196]
[1727059729365,3.4188,146.25,146.21,7.36]
[1727059729766,3.4188,146.25,146.22,3.4192]
[1727059731172,3.40026193,146.27,146.23,7.36]
[1727059731376,3.40026193,146.27,146.24,7.36]
[1727059731979,7.36,146.29,146.26,7.36]
[1727059732275,2.7177,146.33,146.26,7.36]
[1727059732477,7.36,146.31,146.26,7.36]
[1727059732875,7.36,146.3,146.26,7.36]
[1727059733770,10.7774,146.3,146.27,3.4181]
[1727059733971,2.7177,146.33,146.24,7.36]
[1727059733972,7.36,146.29,146.24,7.36]
[1727059734369,10.7777,146.29,146.25,3.4184]
[1727059734572,7.36,146.29,146.25,3.4184]
[1727059734970,7.36,146.28,146.23,7.36]
[1727059735170,10.778,146.28,146.23,7.36]
[1727059735371,7.36,146.28,146.23,7.36]
[1727059736675,7.36,146.28,146.24,7.36]
[1727059737075,7.36,146.29,146.24,7.36]
[1727059738077,7.36,146.29,146.26,3.4182]
[1727059740677,7.36,146.29,146.25,3.4185]
[1727059740971,7.36,146.29,146.24,7.36]
[1727059741370,7.36,146.29,146.26,3.4182]
[1727059741970,3.4179,146.28,146.25,3.4185]
[1727059742170,10.7779,146.28,146.25,3.4185]
[1727059742668,2.7177,146.33,146.21,7.36]
[1727059742669,7.36,146.26,146.21,7.36]
[1727059742974,10.73893703,146.26,146.21,7.36]
[1727059743281,14.15733703,146.26,146.23,3.4189]
[1727059743577,7.36,146.26,146.21,7.36]
[1727059743979,7.36,146.26,146.24,3.4187]
[1727059745776,10.7785,146.26,146.23,3.4189]
[1727059746476,3.4186,146.25,146.21,7.36]
[1727059746679,7.36,146.24,146.16,59.47966256]
[1727059746874,7.36,146.24,146.18,7.36]
[1727059747075,10.7786,146.25,146.2,7.36]
[1727059747276,10.7786,146.25,146.22,3.4191]
[1727059747483,14.2844408,146.25,146.22,3.4191]
[1727059748574,6.9244408,146.25,146.22,3.4191]
[1727059748883,3.4186,146.25,146.23,3.419]
[1727059749973,7.36,146.27,146.23,7.36]
[1727059750175,10.75981049,146.27,146.23,7.36]
[1727059751877,3.4184,146.26,146.21,7.36]
[1727059752280,3.4184,146.26,146.23,3.4189]
[1727059752485,14.17801049,146.27,146.22,7.36]
[1727059752690,3.39981049,146.27,146.22,7.36]
[1727059752890,10.778,146.28,146.25,3.4184]
[1727059753485,3.35945057,146.27,146.25,3.4184]
[1727059754089,3.35945057,146.27,146.26,3.4183]
[1727059755089,7.36,146.28,146.26,3.4183]
[1727059755487,2.7177,146.33,146.22,7.36]
[1727059755488,10.7781,146.27,146.22,7.36]
[1727059755696,14.22169307,146.27,146.22,7.36]
[1727059755988,14.22169307,146.27,146.24,3.4187]
[1727059756199,3.4184,146.26,146.24,3.4187]
[1727059756390,3.4184,146.26,146.21,7.36]
[1727059756694,3.4184,146.26,146.23,3.419]
[1727059756887,10.80359307,146.27,146.21,7.36]
[1727059757086,10.80359307,146.27,146.23,7.36]
[1727059757287,7.36,146.27,146.23,7.36]
[1727059758091,10.7782,146.27,146.24,3.4187]
[1727059758595,6.1345,146.33,146.26,7.36]
[1727059758791,7.36,146.32,146.28,7.36]
[1727059759099,10.7773,146.31,146.28,3.4179]
[1727059759399,7.36,146.31,146.26,7.36]
[1727059759894,7.36,146.31,146.28,3.4177]
[1727059760199,10.7771,146.32,146.26,7.36]
[1727059760403,10.7771,146.32,146.28,3.4177]
[1727059760790,10.7771,146.32,146.26,7.36]
[1727059761493,82.06,146.41,146.29,7.36]
[1727059761694,4.0161,146.4,146.29,7.36]
[1727059761892,7.36,146.34,146.29,7.36]
[1727059762293,7.36,146.36,146.3,7.36]
[1727059762597,7.36,146.36,146.3,10.7773]
[1727059762598,3.4165,146.34,146.3,10.7773]
[1727059762900,7.36,146.34,146.28,7.36]
[1727059763798,3.417,146.32,146.29,3.4176]
[1727059765200,4.0161,146.4,146.27,3.418]
[1727059765201,10.7773,146.31,146.27,3.418]
[1727059765497,7.36,146.31,146.27,3.418]
[1727059765906,7.36,146.33,146.27,7.36]
[1727059766203,7.36,146.33,146.29,7.36]
[1727059767897,3.417,146.32,146.29,10.7775]
[1727059768595,3.417,146.32,146.28,3.4178]
[1727059768795,3.4173,146.31,146.28,3.4178]
[1727059769999,7.36,146.32,146.26,7.36]
[1727059770200,7.36,146.3,146.26,7.36]
[1727059771006,3.4177,146.29,146.26,7.36]
[1727059771299,7.36,146.3,146.26,7.36]
[1727059772197,3.418,146.28,146.26,7.36]
[1727059773105,3.418,146.28,146.25,10.7784]
[1727059774301,3.4181,146.27,146.25,7.36]
[1727059774504,3.4181,146.27,146.24,10.7787]
[1727059777308,3.35226391,146.27,146.23,10.779]
[1727059777605,7.36,146.28,146.22,7.36]
[1727059777606,7.36,146.26,146.22,7.36]
[1727059777809,3.4186,146.25,146.22,10.7793]
[1727059778799,3.4184,146.26,146.23,3.419]
[1727059779006,1.3612,146.28,146.24,7.36]
[1727059779508,7.36,146.31,146.26,7.36]
[1727059780309,7.36,146.31,146.26,10.7783]
[1727059780310,3.4177,146.29,146.26,10.7783]
[1727059780510,7.36,146.31,146.26,10.7783]
[1727059781005,7.36,146.3,146.26,10.7783]
[1727059782413,3.4178,146.29,146.26,10.7783]
[1727059784611,3.4179,146.28,146.26,10.7783]
[1727059785114,15.94650633,146.33,146.27,7.36]
[1727059785414,8.6967,146.33,146.27,7.36]
[1727059785814,3.4173,146.31,146.28,3.4177]
[1727059786817,3.417,146.32,146.28,10.7777]
[1727059787218,12.1136,146.33,146.28,7.36]
[1727059787518,1.3367,146.33,146.28,7.36]
[1727059787912,3.4171,146.32,146.28,7.36]
[1727059788318,3.4171,146.32,146.29,3.4175]
[1727059788512,3.4171,146.32,146.28,7.36]
[1727059789218,1.3367,146.33,146.28,7.36]
[1727059789911,4.7536,146.33,146.3,3.4174]
[1727059790116,3.4169,146.33,146.3,3.4174]
[1727059793118,3.417,146.32,146.29,3.4176]
[1727059793510,7.36,146.32,146.24,1.3126]
[1727059793717,10.1455,146.33,146.28,7.36]
[1727059794422,3.417,146.32,146.29,3.4175]
[1727059799310,3.417,146.32,146.28,7.36]
[1727059799619,3.417,146.32,146.3,3.4174]
[1727059799823,6.2023,146.33,146.3,3.4174]
[1727059800521,3.417,146.32,146.3,3.4174]
[1727059801223,3.417,146.32,146.29,10.7775]
[1727059801617,10.1455,146.33,146.28,7.36]
[1727059801919,10.1455,146.33,146.28,10.7777]
[1727059802125,3.417,146.32,146.28,7.36]
[1727059802322,2.7855,146.33,146.29,7.36]
[1727059802621,1.3963,146.34,146.3,7.36]
[1727059802927,10.8522299,146.35,146.3,7.36]
[1727059803519,3.4167,146.33,146.3,10.7773]
[1727059803720,10.8522299,146.35,146.3,7.36]
[1727059804327,3.4167,146.34,146.31,3.4171]
[1727059804621,14.6011674,146.37,146.3,7.36]
[1727059804826,3.4162,146.36,146.33,10.7766]
[1727059806319,3.4162,146.36,146.33,3.4166]
[1727059807025,7.36,146.37,146.33,3.4166]
[1727059808122,1.4362,146.39,146.36,7.36]
[1727059808323,14.60164264,146.42,146.37,7.36]
[1727059808324,21.96164264,146.42,146.37,7.36]
[1727059808627,7.36,146.42,146.37,7.36]
[1727059809126,2.6394,146.43,146.39,7.36]
[1727059809324,9.9994,146.43,146.39,7.36]
[1727059809520,3.4151,146.41,146.39,7.36]
[1727059809724,7.36,146.42,146.37,10.7757]
[1727059809927,7.36,146.42,146.32,4.2389]
[1727059809928,7.36,146.4,146.35,7.36]
[1727059810134,3.4156,146.38,146.35,10.7761]
[1727059812632,7.36,146.4,146.35,7.36]
[1727059813317,3.4157,146.38,146.35,10.7762]
[1727059824031,7.36,146.4,146.32,1.4079]
[1727059824233,7.36,146.35,146.31,65.45135765]
[1727059824433,10.72215735,146.35,146.31,65.45135765]
[1727059824730,10.72215735,146.35,146.31,68.86845765]
[1727059824731,3.4165,146.34,146.31,68.86845765]
[1727059825534,6.77845735,146.35,146.32,3.4169]
[1727059826132,3.4163,146.35,146.33,3.4167]
[1727059826439,10.1815,146.38,146.33,7.36]
[1727059826933,3.4159,146.37,146.34,3.4163]
[1727059828338,3.416,146.36,146.33,10.7766]
[1727059829635,3.4159,146.37,146.34,10.7765]
[1727059830553,7.36,146.41,146.36,7.36]
[1727059831654,3.4154,146.39,146.36,10.7759]
[1727059837054,3.4156,146.38,146.36,10.7759]
[1727059837256,7.36,146.38,146.32,7.36]
[1727059837461,1.4271,146.42,146.32,7.36]
[1727059837462,7.36,146.37,146.32,7.36]
[1727059837954,7.36,146.37,146.31,7.36]
[1727059838557,3.4164,146.35,146.32,3.4168]
[1727059838753,6.80282422,146.35,146.32,3.4168]
[1727059839261,7.36,146.34,146.3,3.4172]
[1727059839559,3.4173,146.31,146.29,7.36]
[1727059839754,3.4173,146.31,146.28,10.7777]
[1727059840851,6.9001499,146.32,146.29,7.36]
[1727059842450,3.417,146.32,146.29,10.7776]
[1727059842652,3.4168,146.33,146.3,7.36]
[1727059842857,7.36,146.36,146.31,7.36]
[1727059843057,3.49400953,146.36,146.33,7.36]
[1727059843262,7.36,146.38,146.33,7.36]
[1727059843651,3.416,146.36,146.33,10.7766]
[1727059844357,1.4159,146.39,146.35,7.36]
[1727059845867,3.4156,146.38,146.35,10.7761]
[1727059847266,3.4153,146.4,146.37,7.36]
[1727059848468,3.4154,146.39,146.37,7.36]
[1727059849156,3.4154,146.39,146.36,10.7759]
[1727059851957,3.4156,146.38,146.35,3.4161]
[1727059852260,7.36,146.39,146.33,7.36]
[1727059853059,3.4158,146.37,146.34,3.4163]
[1727059854064,3.4161,146.36,146.33,10.7766]
[1727059854260,3.4161,146.36,146.33,7.36]
[1727059854566,3.4159,146.37,146.34,3.4164]
[1727059855268,3.4161,146.36,146.34,3.4164]
[1727059856662,3.4158,146.37,146.34,3.4164]
[1727059858770,6.88328096,146.36,146.33,10.7766]
[1727059858968,3.46708096,146.36,146.32,7.36]
[1727059859366,3.4163,146.35,146.32,10.7768]
[1727059859768,10.82708096,146.36,146.32,10.7768]
[1727059859975,3.4163,146.35,146.32,10.7768]
[1727059860177,3.4163,146.35,146.32,3.4168]
[1727059860473,6.85604075,146.35,146.32,3.4168]
[1727059860869,3.4165,146.34,146.32,3.4168]
[1727059861162,3.43974075,146.35,146.31,10.7771]
[1727059861366,14.62104687,146.42,146.28,7.36]
[1727059861367,3.417,146.32,146.28,7.36]
[1727059861676,6.89891061,146.32,146.28,7.36]
[1727059861970,6.89891061,146.32,146.29,3.4175]
[1727059862271,3.45764285,146.36,146.31,7.36]
[1727059862467,7.36,146.38,146.34,7.36]
[1727059863063,3.4159,146.37,146.34,10.7764]
[1727059864270,1.3939,146.41,146.36,7.36]
[1727059864468,1.3939,146.41,146.37,7.36]
[1727059864669,2.7081,146.43,146.39,7.36]
[1727059864872,3.4149,146.41,146.39,7.36]
[1727059865371,3.4151,146.4,146.32,2.84]
[1727059865574,3.4151,146.4,146.36,7.36]
[1727059865770,3.4151,146.4,146.36,10.7758]
[1727059866068,3.4153,146.39,146.36,10.7758]
[1727059866272,7.36,146.41,146.36,10.7758]
[1727059866976,2.7081,146.43,146.32,2.84]
[1727059866977,3.4154,146.39,146.35,3.4162]
[1727059867173,7.36,146.4,146.32,2.84]
[1727059867374,3.4157,146.38,146.34,7.36]
[1727059867674,7.36,146.4,146.34,10.7764]
[1727059868079,3.4157,146.38,146.34,10.7764]
[1727059869478,7.36,146.4,146.32,2.84]
[1727059869479,3.4153,146.39,146.36,10.776]
[1727059869677,7.36,146.41,146.36,7.36]
[1727059869875,7.36,146.41,146.37,7.36]
[1727059870076,3.4152,146.4,146.37,10.7756]
[1727059871071,10.82463777,146.44,146.39,7.36]
[1727059871976,10.82463777,146.44,146.38,7.36]
[1727059872575,3.4147,146.42,146.39,3.4152]
[1727059872769,7.36,146.43,146.37,7.36]
[1727059873378,10.775,146.41,146.37,10.7756]
[1727059873675,7.36,146.41,146.37,10.7756]
[1727059873884,3.4155,146.39,146.34,7.36]
[1727059874371,3.4155,146.39,146.33,11.49]
[1727059874677,3.4152,146.4,146.37,3.4158]
[1727059874981,11.49,146.42,146.33,11.49]
[1727059875381,3.4155,146.39,146.33,11.49]
[1727059875681,6.75623669,146.39,146.33,11.49]
[1727059875880,6.75623669,146.39,146.36,3.416]
[1727059876073,3.4152,146.4,146.33,11.49]
[1727059876377,6.83008416,146.4,146.33,11.49]
[1727059876780,3.41488416,146.4,146.33,11.49]
[1727059877076,12.7993,146.42,146.33,11.49]
[1727059877382,12.7993,146.42,146.35,3.4161]
[1727059877683,16.16875112,146.42,146.35,3.4161]
[1727059878477,3.4155,146.39,146.35,3.4161]
[1727059879087,3.4151,146.4,146.33,11.49]
[1727059879582,3.4154,146.39,146.36,3.4158]
[1727059879787,16.16875112,146.42,146.33,11.49]
[1727059880081,3.4161,146.36,146.33,3.4166]
[1727059881075,3.4163,146.35,146.27,2.8279]
[1727059881280,3.4163,146.35,146.28,12.8442]
[1727059881685,3.4166,146.34,146.28,12.8442]
[1727059882184,11.49,146.36,146.28,1.3542]
[1727059882390,11.49,146.36,146.29,3.4176]
[1727059882391,3.4169,146.33,146.29,3.4176]
[1727059882583,3.3540733,146.32,146.29,3.4176]
[1727059883685,6.7710733,146.32,146.29,3.4176]
[1727059884086,11.49,146.36,146.28,12.8442]
[1727059884686,3.4166,146.34,146.3,3.4172]
[1727059884883,6.76976892,146.34,146.3,3.4172]
[1727059885084,6.76976892,146.34,146.28,12.8442]
[1727059886192,3.4163,146.35,146.28,12.8442]
[1727059886983,3.4163,146.35,146.31,3.417]
[1727059887279,3.4163,146.35,146.28,12.8442]
[1727059887485,3.4163,146.35,146.32,3.4167]
[1727059890481,6.81570873,146.34,146.31,3.4171]
[1727059892193,1.3646,146.38,146.31,11.49]
[1727059892992,3.416,146.37,146.33,3.4166]
[1727059893790,3.416,146.37,146.34,3.4165]
[1727059894589,1.3646,146.38,146.31,11.49]
[1727059894792,3.416,146.36,146.33,3.4166]
[1727059895402,3.4159,146.37,146.34,3.4164]
[1727059897992,12.1303,146.38,146.35,3.4162]
[1727059898187,10.7657,146.38,146.35,3.4162]
[1727059900694,7.35,146.36,146.28,1.3542]
[1727059900998,7.35,146.36,146.31,7.35]
[1727059901394,7.35,146.36,146.28,1.3542]
[1727059901696,7.35,146.34,146.29,7.35]
[1727059901901,7.35,146.33,146.28,7.35]
[1727059902294,3.4171,146.32,146.29,3.4175]
[1727059902496,11.48,146.35,146.25,11.48]
[1727059902895,6.86796372,146.34,146.31,3.4171]
[1727059903091,11.48,146.36,146.27,11.48]
[1727059903396,1.3906,146.38,146.32,3.4168]
[1727059903397,3.4163,146.35,146.32,3.4168]
[1727059903895,12.8706,146.38,146.29,11.48]
[1727059903896,3.416,146.37,146.29,11.48]
[1727059904092,12.8706,146.38,146.29,11.48]
[1727059905000,12.8706,146.38,146.33,3.4166]
[1727059905001,3.4161,146.36,146.33,3.4166]
[1727059906102,12.8706,146.38,146.29,12.9245]
[1727059906598,3.4166,146.34,146.31,3.417]
[1727059906805,6.91789074,146.34,146.31,3.417]
[1727059906999,3.4166,146.34,146.31,3.417]
[1727059907600,6.88849399,146.34,146.31,3.417]
[1727059909101,6.88849399,146.34,146.29,1.4445]
[1727059909102,3.4163,146.35,146.32,3.4168]
[1727059909299,12.8706,146.38,146.29,12.9245]
[1727059909803,3.416,146.37,146.33,3.4165]
[1727059911092,1.3906,146.38,146.29,12.9245]
[1727059912002,3.4159,146.37,146.34,3.4164]
[1727059912706,12.8706,146.38,146.29,12.9245]
[1727059912900,12.8706,146.38,146.29,1.4445]
[1727059913302,3.4164,146.35,146.32,3.4168]
[1727059913502,12.8706,146.38,146.29,1.4445]
[1727059914107,3.4161,146.36,146.29,1.4445]
[1727059914506,3.4159,146.37,146.31,11.48]
[1727059915407,3.4159,146.37,146.34,3.4164]
[1727059915904,3.4161,146.36,146.29,12.9245]
[1727059916103,3.4161,146.36,146.33,3.4165]
[1727059917303,3.4158,146.37,146.29,12.9245]
[1727059917613,1.3705,146.39,146.31,11.48]
[1727059918404,3.4156,146.38,146.35,3.4161]
[1727059919005,3.4158,146.37,146.34,3.4164]
[1727059919202,1.3705,146.39,146.31,11.48]
[1727059919406,12.8505,146.39,146.29,12.9245]
[1727059919613,3.4161,146.36,146.33,3.4165]
[1727059920011,3.4163,146.35,146.32,3.4169]
[1727059920218,12.8505,146.39,146.29,12.9245]
[1727059922210,3.4161,146.36,146.33,3.4166]
[1727059923106,3.4163,146.35,146.33,3.4166]
[1727059923303,12.8505,146.39,146.33,3.4166]
[1727059924204,12.8505,146.39,146.29,12.9245]
[1727059924411,1.3705,146.39,146.31,11.48]
[1727059924810,3.4159,146.37,146.34,3.4164]
[1727059925508,3.4161,146.36,146.33,3.4166]
[1727059925706,12.8505,146.39,146.29,12.9245]
[1727059926310,3.416,146.36,146.33,3.4165]
[1727059926617,12.8505,146.39,146.29,12.9245]
[1727059927010,1.3705,146.39,146.32,11.48]
[1727059927615,1.3705,146.39,146.35,3.4161]
[1727059928206,3.4158,146.37,146.34,3.4164]
[1727059932315,10.7658,146.37,146.34,3.4164]
[1727059932809,3.4158,146.37,146.34,3.4164]
[1727059934918,1.3705,146.39,146.35,7.35]
[1727059935117,7.35,146.43,146.38,7.35]
[1727059935719,3.415,146.41,146.38,10.7653]
[1727059937021,3.415,146.41,146.38,3.4153]
[1727059937427,3.4151,146.4,146.37,3.4157]
[1727059937629,10.7651,146.4,146.37,3.4157]
[1727059938036,3.4151,146.4,146.37,3.4157]
[1727059940336,3.4149,146.41,146.38,10.7655]
[1727059940835,7.35,146.4,146.32,6.49018593]
[1727059941134,7.35,146.39,146.33,7.35]
[1727059941526,7.35,146.37,146.33,7.35]
[1727059942926,7.35,146.37,146.34,3.4164]
[1727059942927,10.7658,146.37,146.34,3.4164]
[1727059944338,3.4158,146.37,146.34,3.4164]
[1727059944634,1.3306,146.41,146.31,11.49]
[1727059944838,12.8179,146.39,146.31,11.49]
[1727059945241,3.4161,146.36,146.33,3.4167]
[1727059949345,3.4159,146.37,146.34,3.4165]
[1727059949746,11.49,146.35,146.16,13.6821]
[1727059949944,11.49,146.35,146.25,11.49]
[1727059950441,3.4169,146.33,146.26,6.49615262]
[1727059950643,6.75627239,146.33,146.26,6.49615262]
[1727059951038,3.417,146.32,146.25,11.49]
[1727059951550,3.417,146.32,146.29,3.4175]
[1727059954257,1.3698,146.36,146.27,11.49]
[1727059954653,1.3698,146.36,146.28,6.49550603]
[1727059954955,3.4165,146.35,146.29,11.49]
[1727059955152,1.3698,146.36,146.29,11.49]
[1727059955358,27.44578176,146.39,146.29,11.49]
[1727059955550,1.3279,146.39,146.31,11.49]
[1727059956250,3.4159,146.37,146.34,3.4163]
[1727059958852,3.416,146.36,146.33,3.4167]
[1727059959049,11.49,146.38,146.3,1.3642]
[1727059960055,3.4162,146.36,146.33,3.4167]
[1727059961155,3.4162,146.36,146.3,1.3642]
[1727059961156,3.4163,146.35,146.32,3.4169]
[1727059961461,11.49,146.36,146.27,11.49]
[1727059961654,3.4166,146.34,146.28,6.49754741]
[1727059961850,3.4166,146.34,146.31,3.4171]
[1727059965958,6.91887439,146.33,146.3,3.4173]
[1727059966163,3.50197439,146.33,146.27,11.49]
[1727059966462,3.4171,146.32,146.28,7.36]
[1727059967658,3.4171,146.32,146.3,3.4174]
[1727059968162,14.21861358,146.33,146.3,3.4174]
[1727059968459,3.4168,146.33,146.3,3.4174]